[Event "Budapest IM-A ONE WEEK Feb 2024"]
[Site "Budapest"]
[Date "2024.03.01"]
[Round "8.4"]
[White "Papp, Sarah"]
[Black "Fodor, Balazs"]
[Result "1/2-1/2"]
[ECO "B90"]
[WhiteElo "2279"]
[BlackElo "2215"]
[Annotator "TA"]
[PlyCount "87"]
[EventDate "2024.02.25"]
[EventType "tourn"]
[EventCountry "HUN"]
[SourceTitle "playchess.com"]
[Source "ChessBase"]
[SourceQuality "1"]
[TimeControl "5400+30"]

{[%evp 12,87,16,25,37,29,37,30,43,17,27,25,51,25,25,0,82,98,89,102,101,110,111,105,106,103,96,53,77,77,93,86,87,52,60,56,52,44,112,112,117,65,88,91,106,109,100,104,125,139,129,119,120,66,60,62,125,115,108,113,90,81,178,151,192,29,375,352,470,464,1291,917,29979,29980,29993,29993,29993,29994]} 1. e4 {[%emt 0:00:03]} c5 {[%emt 0:00:34]} 2. Nf3 {[%emt 0:00:04]} d6 {[%emt 0:00:31]} 3. d4 {[%emt 0:00:05]} cxd4 {[%emt 0:00:09]} 4. Nxd4 {[%emt 0:00:03]} Nf6 {[%emt 0:00:14]} 5. Nc3 {[%emt 0:00:04]} a6 {[%emt 0:00:09]} 6. h3 {[%emt 0:00:06]} e6 {[%emt 0:00:08]} 7. g4 {[%emt 0:00:06]} Nfd7 {[%emt 0:00:14]} 8. h4 {[%emt 0:02:28]} b5 {[%emt 0:00:09]} 9. a3 {[%emt 0:01:44]} Bb7 {[%emt 0:00:08] Weiß hat minimalen Vorteil.} 10. g5 {[%emt 0:00:49]} Be7 {[%emt 0:00:12]} 11. Be3 {[%emt 0:00:41]} Nc6 {[%emt 0:01:30]} 12. Rg1 {[%emt 0:15:44]} Rc8 {[%emt 0:09:55]} 13. h5 {[%emt 0:13:32]} Nxd4 {[%emt 0:07:09]} (13... Nce5 $11 {hält das Gleichgewicht.}) 14. Qxd4 $16 {[%emt 0:03:59]} Ne5 {[%emt 0:08:21]} 15. O-O-O {[%emt 0:06:01] f4 wäre nun fies.} Rg8 {[%emt 0:02:34]} 16. Rg3 {[%emt 0:03:36] Lässt Nf3 nicht zu} Nc4 {[%emt 0:07:33]} 17. Bxc4 {[%emt 0:03:18]} Rxc4 {[%emt 0:00:09]} 18. Qd3 {[%emt 0:00:22][%cal Oe4e5]} g6 {[%emt 0:08:22]} 19. h6 {[%emt 0:01:14] Schwarz hat schwache schwarze Felder} Qa8 {[%emt 0:05:46]} 20. f3 {[%emt 0:02:44]} Qc8 {[%emt 0:03:46]} 21. Rg2 {[%emt 0:09:12]} Rf8 {[%emt 0:14:59]} 22. Bf4 {[%emt 0:08:53]} e5 {[%emt 0:01:41]} 23. Be3 {[%emt 0:01:29] Lässt Rd4 nicht zu} Qh3 {[%emt 0:01:25]} 24. Rf2 {[%emt 0:04:21][%cal Oa3a4]} Qe6 {[%emt 0:07:03]} (24... f6 $14) 25. b3 {[%emt 0:03:02]} Rc8 {[%emt 0:00:28]} 26. Kb2 {[%emt 0:02:18]} (26. a4 $16) 26... f6 $14 {[%emt 0:02:20]} 27. gxf6 $1 {[%emt 0:00:05]} Rxf6 {[%emt 0:00:54]} 28. a4 {[%emt 0:01:54]} bxa4 {[%emt 0:03:29]} 29. Nxa4 {[%emt 0:00:13]} Rf7 {[%emt 0:04:40]} 30. Nb6 {[%emt 0:00:53]} Rd8 {[%emt 0:00:35]} 31. Qc3 {[%emt 0:06:08]} Kf8 {[%emt 0:02:07]} 32. Nd5 {[%emt 0:01:29] Weiß steht deutlich aktiver.} (32. f4 $16) 32... Bxd5 {[%emt 0:01:12]} 33. Rxd5 {[%emt 0:00:04]} Qh3 {[%emt 0:01:35]} ({Besser ist} 33... g5 $14) 34. f4 $36 {[%emt 0:01:31][%mdl 2048] Weiss hat starke Initiative.} Rc8 {[%emt 0:00:06]} 35. Qd2 {[%emt 0:03:25]} exf4 {[%emt 0:01:24]} 36. Rxf4 {[%emt 0:01:11]} Rxf4 {[%emt 0:03:04]} (36... Kg8 $16 {war angesagt.}) 37. Bxf4 $18 {[%emt 0:00:05]} Bf6+ {[%emt 0:00:38] [#]} 38. Ka2 $2 {[%emt 0:02:44]} (38. e5 $1 $18 {[%cal Re5f6]} dxe5 39. Bxe5) 38... Qf1 $2 {[%emt 0:00:49][%mdl 8192] Das Aus für Schwarz.} (38... Qh1 $1 $11 {und Schwarz ist OK.} 39. Bxd6+ (39. Rxd6 $2 Qa1#) 39... Ke8) 39. Bxd6+ {[%emt 0:00:12]} Kg8 {[%emt 0:00:25] [#]} 40. Be5 {[%emt 0:01:03] Pariert Qa1+.} (40. e5 Bg5 41. Qd3 (41. Qxg5 Rxc2+ 42. Ka3 Qa1+ 43. Kb4 Qc3+ 44. Ka3 Qa1+ 45. Kb4 Qe1+ 46. Ka3 Qa1+ $11) 41... Qxd3 42. cxd3 Rc2+ 43. Kb1 Re2 $11) 40... Be7 {[%emt 0:02:50]} (40... Bxe5 $142 41. Rxe5 Qf7) 41. Bb2 {[%emt 0:00:34] Schwarz muss nun Rd7 beachten.} Rf8 {[%emt 0:01:10]} 42. Rd7 {[%emt 0:00:13] Weiß setzt Matt.} Kf7 {[%emt 0:00:26]} 43. Qd5+ {[%emt 0:00:22]} Ke8 {[%emt 0:00:13]} 44. Ra7 {[%emt 0:00:36][%mdl 32768] Gewichteter Fehlerwert: Weiß=0.14 (sehr präzise) /Schwarz=0.42.  Verlustzug:     	---       	Schwarz=1     Gewinn verpasst:   	Weiß=1     	---        Fehler:       	Weiß=2     	Schwarz=5     Ungenau:       	Weiß=3     	Schwarz=2     OK:         	Weiß=14    	Schwarz=12    Bester:       	Weiß=1     	Schwarz=5     Stark:        	Weiß=1     	---       . Ein unerwartetes Ergebnis.} 1/2-1/2

[Event "Budapest IM-A ONE WEEK Feb 2024"]
[Site "Budapest"]
[Date "2024.03.01"]
[Round "8.5"]
[White "Dudognon, Thibault"]
[Black "Foldes, Marton Gabor"]
[Result "1-0"]
[ECO "B44"]
[WhiteElo "2388"]
[BlackElo "2119"]
[Annotator "RC"]
[PlyCount "107"]
[EventDate "2024.02.25"]
[EventType "tourn"]
[EventCountry "HUN"]
[SourceTitle "playchess.com"]
[Source "ChessBase"]
[SourceQuality "1"]
[TimeControl "5400+30"]

1. e4 {[%emt 0:02:31]} c5 {[%emt 0:00:07]} 2. Nf3 {[%emt 0:00:24]} e6 {[%emt 0:00:05]} 3. d4 {[%emt 0:00:04]} cxd4 {[%emt 0:00:04]} 4. Nxd4 {[%emt 0:00:05]} Nc6 {[%emt 0:00:04]} 5. Bf4 {[%emt 0:00:05]} d6 {[%emt 0:03:07]} 6. Nxc6 {[%emt 0:00:15]} bxc6 {[%emt 0:00:06]} 7. Bd3 {[%emt 0:00:03]} e5 {[%emt 0:02:54]} 8. Be3 {[%emt 0:01:10]} Nf6 {[%emt 0:02:53]} 9. c4 {[%emt 0:00:44]} Be7 {[%emt 0:04:29]} 10. O-O {[%emt 0:00:59]} O-O {[%emt 0:00:56]} 11. Nc3 {[%emt 0:00:54]} Be6 {[%emt 0:03:32]} 12. Qa4 {[%emt 0:04:29]} Qc7 {[%emt 0:07:36]} 13. Rac1 {[%emt 0:02:48]} Qb7 {[%emt 0:01:25]} 14. Qc2 {[%emt 0:01:22]} h6 {[%emt 0:09:17]} 15. b3 {[%emt 0:03:11]} Rad8 {[%emt 0:04:54]} 16. f3 {[%emt 0:03:19]} d5 {[%emt 0:06:11]} 17. cxd5 {[%emt 0:01:49]} cxd5 {[%emt 0:00:11]} 18. exd5 {[%emt 0:00:21]} Nxd5 {[%emt 0:00:07]} 19. Nxd5 {[%emt 0:00:04]} Bxd5 {[%emt 0:00:08]} 20. Bh7+ {[%emt 0:00:22]} Kh8 {[%emt 0:00:10]} 21. Be4 {[%emt 0:00:16]} Bxe4 {[%emt 0:17:17]} 22. Qxe4 {[%emt 0:00:19]} Qxe4 {[%emt 0:01:17]} 23. fxe4 {[%emt 0:00:06]} Rd7 {[%emt 0:00:11]} 24. Kf2 {[%emt 0:09:11]} Rfd8 {[%emt 0:06:00]} 25. Ke2 {[%emt 0:00:19]} Bg5 {[%emt 0:01:24]} 26. Bxg5 {[%emt 0:00:45]} hxg5 {[%emt 0:00:02]} 27. Rfd1 {[%emt 0:00:28]} f6 {[%emt 0:02:04]} 28. Rxd7 {[%emt 0:01:07]} Rxd7 {[%emt 0:00:02]} 29. Ke3 {[%emt 0:04:26]} Kg8 {[%emt 0:01:14]} 30. b4 {[%emt 0:00:44]} Kf7 {[%emt 0:01:53]} 31. b5 {[%emt 0:02:26]} g6 {[%emt 0:07:55]} 32. a4 {[%emt 0:00:58]} f5 {[%emt 0:02:49]} 33. a5 {[%emt 0:00:49]} Rb7 {[%emt 0:00:55]} 34. Rb1 {[%emt 0:02:10]} Ke7 {[%emt 0:02:26]} 35. Kd3 {[%emt 0:01:38]} Kd6 {[%emt 0:06:46]} 36. a6 {[%emt 0:07:56]} Rb8 {[%emt 0:00:59]} 37. Kc4 {[%emt 0:09:56]} Rc8+ {[%emt 0:01:13]} 38. Kb4 {[%emt 0:00:24]} Rc2 {[%emt 0:03:24]} 39. b6 {[%emt 0:00:23]} axb6 {[%emt 0:01:24]} 40. Ra1 {[%emt 0:00:04]} Rc8 {[%emt 0:00:11]} 41. a7 {[%emt 0:01:11]} Ra8 {[%emt 0:00:06]} 42. Kb5 {[%emt 0:00:12]} Kc7 {[%emt 0:00:11]} 43. Ka6 {[%emt 0:00:07]} fxe4 {[%emt 0:03:13]} 44. Re1 {[%emt 0:01:44]} Kd6 {[%emt 0:00:46]} 45. Rxe4 {[%emt 0:00:06]} Kd5 {[%emt 0:00:09]} 46. Rg4 {[%emt 0:00:05]} b5 {[%emt 0:00:35]} 47. Kb7 {[%emt 0:03:22]} Rf8 {[%emt 0:00:32]} 48. a8=Q {[%emt 0:00:09]} Rxa8 {[%emt 0:00:03]} 49. Kxa8 {[%emt 0:00:04]} e4 {[%emt 0:00:05]} 50. Rxg5+ {[%emt 0:00:03]} Kc4 {[%emt 0:00:05]} 51. Re5 {[%emt 0:00:02]} Kd3 {[%emt 0:00:26]} 52. Rxb5 {[%emt 0:00:06]} e3 {[%emt 0:00:04]} 53. Re5 {[%emt 0:00:14]} e2 {[%emt 0:00:10]} 54. h4 {[%emt 0:00:11]} 1-0

[Event "Budapest IM-A ONE WEEK Feb 2024"]
[Site "Budapest"]
[Date "2024.03.02"]
[Round "9.1"]
[White "Foldes, Marton Gabor"]
[Black "Meessen, Rudolf"]
[Result "1-0"]
[ECO "B02"]
[WhiteElo "2119"]
[BlackElo "2169"]
[Annotator "RC"]
[PlyCount "92"]
[EventDate "2024.02.25"]
[EventType "tourn"]
[EventCountry "HUN"]
[SourceTitle "playchess.com"]
[Source "ChessBase"]
[SourceQuality "1"]
[TimeControl "5400+30"]

1. e4 Nf6 2. e5 Nd5 3. Nc3 Nxc3 4. bxc3 e6 5. f4 d5 6. Nf3 c5 7. d4 Qa5 8. Bd2 c4 9. Be2 Bd7 10. O-O h6 11. f5 exf5 12. Nh4 g6 13. g4 Be7 14. Ng2 Na6 15. gxf5 gxf5 16. Ne3 Rg8+ 17. Kh1 Rg5 18. Ng2 O-O-O 19. Bxg5 hxg5 20. Qd2 Rh8 21. Ne3 f4 22. Nd1 Nc7 23. Nf2 Nb5 24. Nd1 Bf5 25. Bf3 Na3 26. Rc1 Be6 27. Qg2 Rh4 28. Nf2 Kb8 29. Rg1 a6 30. Rgf1 Ka7 31. Rg1 Nb5 32. Bxd5 Nxc3 33. Bxb7 g4 34. Nd1 g3 35. Nxc3 Qxc3 36. Be4 Rxh2+ 37. Qxh2 gxh2 38. Rg8 Qxd4 39. Ra8+ Kb6 40. Rb8+ Ka5 41. Bg2 Bd5 42. Rg8 f3 43. Bf1 Bc5 44. Bh3 Qxe5 45. Rc8 f2+ 46. Bg2 Qe1+ 1-0

[Event "Budapest IM-A ONE WEEK Feb 2024"]
[Site "Budapest"]
[Date "2024.03.02"]
[Round "9.2"]
[White "Fodor, Balazs"]
[Black "Dudognon, Thibault"]
[Result "1/2-1/2"]
[ECO "D20"]
[WhiteElo "2215"]
[BlackElo "2388"]
[Annotator "RC"]
[PlyCount "53"]
[EventDate "2024.02.25"]
[EventType "tourn"]
[EventCountry "HUN"]
[SourceTitle "playchess.com"]
[Source "ChessBase"]
[SourceQuality "1"]
[TimeControl "5400+30"]

1. d4 {[%emt 0:05:15]} d5 {[%emt 0:00:05]} 2. c4 {[%emt 0:00:09]} dxc4 {[%emt 0:00:08]} 3. e3 {[%emt 0:00:57]} e5 {[%emt 0:01:11]} 4. Bxc4 {[%emt 0:00:09]} Nc6 {[%emt 0:00:56]} 5. Nf3 {[%emt 0:00:08]} e4 {[%emt 0:00:06]} 6. Qb3 {[%emt 0:00:07]} Nh6 {[%emt 0:00:07]} 7. Nfd2 {[%emt 0:00:07]} f5 {[%emt 0:00:14]} 8. O-O {[%emt 0:00:18]} Bd6 {[%emt 0:00:10]} 9. Be2 {[%emt 0:04:56]} Nf7 {[%emt 0:00:12]} 10. Nc4 {[%emt 0:01:53]} O-O {[%emt 0:01:10]} 11. Nc3 {[%emt 0:01:18]} Kh8 {[%emt 0:00:17]} 12. f3 {[%emt 0:03:25]} exf3 {[%emt 0:05:00]} 13. Bxf3 {[%emt 0:00:09]} Ng5 {[%emt 0:04:01]} 14. Be2 {[%emt 0:04:48]} a6 {[%emt 0:05:42]} 15. Bd2 {[%emt 0:07:56]} Be7 {[%emt 0:01:27]} 16. a4 {[%emt 0:13:12]} Rb8 {[%emt 0:04:36]} 17. d5 {[%emt 0:04:32]} Nb4 {[%emt 0:04:45]} 18. e4 {[%emt 0:05:39]} Nf7 {[%emt 0:04:44]} 19. Be3 {[%emt 0:08:32]} fxe4 {[%emt 0:03:31]} 20. Rad1 {[%emt 0:00:19]} b5 {[%emt 0:05:35]} 21. axb5 {[%emt 0:01:08]} axb5 {[%emt 0:00:08]} 22. Na5 {[%emt 0:04:43]} Bd6 {[%emt 0:01:00]} 23. Nxe4 {[%emt 0:06:09]} Ra8 {[%emt 0:04:05]} 24. Nxd6 {[%emt 0:01:47]} Qxd6 {[%emt 0:00:19]} 25. Nc6 {[%emt 0:00:52]} Nxc6 {[%emt 0:01:57]} 26. dxc6 {[%emt 0:00:07]} Qe7 {[%emt 0:00:41]} 27. Qc3 {[%emt 0:06:27]} 1/2-1/2

[Event "Budapest IM-A ONE WEEK Feb 2024"]
[Site "Budapest"]
[Date "2024.03.02"]
[Round "9.2"]
[White "Poysti, Nathanael"]
[Black "Velikic, Adela"]
[Result "*"]
[ECO "D20"]
[WhiteElo "2197"]
[BlackElo "2278"]
[Annotator "RC"]
[PlyCount "22"]
[EventDate "2024.02.25"]
[EventType "tourn"]
[EventCountry "HUN"]
[SourceTitle "playchess.com"]
[Source "ChessBase"]
[SourceQuality "1"]
[TimeControl "5400+30"]

1. d4 {[%emt 0:05:15]} d5 {[%emt 0:00:05]} 2. c4 {[%emt 0:00:09]} dxc4 {[%emt 0:00:08]} 3. e3 {[%emt 0:00:57]} e5 {[%emt 0:01:11]} 4. Bxc4 {[%emt 0:00:09]} Nc6 {[%emt 0:00:56]} 5. Nf3 {[%emt 0:00:08]} e4 {[%emt 0:00:06]} 6. Qb3 {[%emt 0:00:07]} Nh6 {[%emt 0:00:07]} 7. Nfd2 {[%emt 0:00:07]} f5 {[%emt 0:00:14]} 8. O-O {[%emt 0:00:18]} Bd6 {[%emt 0:00:10]} 9. Be2 {[%emt 0:04:56]} Nf7 {[%emt 0:00:12]} 10. Nc4 {[%emt 0:01:53]} O-O {[%emt 0:01:10]} 11. Nc3 {[%emt 0:01:18]} Kh8 {[%emt 0:00:17]} *

[Event "Budapest IM-A ONE WEEK Feb 2024"]
[Site "Budapest"]
[Date "2024.03.02"]
[Round "9.3"]
[White "Jakab, Attila"]
[Black "Papp, Sarah"]
[Result "0-1"]
[ECO "E54"]
[WhiteElo "2278"]
[BlackElo "2279"]
[Annotator "TA"]
[PlyCount "56"]
[EventDate "2024.02.25"]
[EventType "tourn"]
[EventCountry "HUN"]
[SourceTitle "playchess.com"]
[Source "ChessBase"]
[SourceQuality "1"]
[TimeControl "5400+30"]

{[%evp 17,56,2,6,-14,-19,-29,0,0,0,-22,-21,0,-5,-4,0,-8,-11,-21,-6,-59,-72,-55,-58,-64,-62,-87,-88,-87,-99,-79,-72,-138,-138,-257,-250,-254,-254,-277,-270,-255,-254]} 1. d4 {[%emt 0:30:50]} Nf6 {[%emt 0:00:05]} 2. c4 {[%emt 0:00:04]} e6 {[%emt 0:00:03]} 3. Nc3 {[%emt 0:00:05]} Bb4 {[%emt 0:00:04]} 4. e3 {[%emt 0:00:10]} O-O {[%emt 0:00:14]} 5. Bd3 {[%emt 0:00:05]} d5 {[%emt 0:00:10]} 6. Nf3 {[%emt 0:00:05]} dxc4 {[%emt 0:00:07]} 7. Bxc4 {[%emt 0:00:04]} c5 {[%emt 0:00:15]} 8. O-O {[%emt 0:00:24]} Nc6 {[%emt 0:00:06]} 9. a3 {[%emt 0:00:20]} Ba5 {[%emt 0:00:07]} 10. d5 {[%emt 0:02:16]} exd5 {[%emt 0:02:05]} 11. Nxd5 {[%emt 0:02:29]} Bg4 {[%emt 0:02:17]} 12. h3 {[%emt 0:00:19] The position is equal.} Bh5 {[%emt 0:01:07]} 13. Nf4 {[%emt 0:03:00]} Qxd1 {[%emt 0:02:47]} 14. Rxd1 {[%emt 0:00:05]} Bxf3 {[%emt 0:00:06]} 15. gxf3 {[%emt 0:00:04]} Rfd8 {[%emt 0:03:01]} 16. Nd5 {[%emt 0:01:59]} Kf8 {[%emt 0:15:11]} 17. Bb3 {[%emt 0:04:12]} Nxd5 {[%emt 0:02:47]} 18. Rxd5 {[%emt 0:02:07]} (18. Bxd5 $11 Ne7 19. Bb3) 18... Rxd5 $15 {[%emt 0:00:51]} 19. Bxd5 {[%emt 0:00:05]} Rd8 {[%emt 0:04:27]} 20. Bb3 {[%emt 0:01:30]} Ne5 {[%emt 0:11:50]} 21. Kg2 {[%emt 0:01:19]} c4 {[%emt 0:09:30]} 22. Bc2 {[%emt 0:03:33][%cal Ob2b4]} Nd3 {[%emt 0:00:34] [#] Hoping for ...Ne1+.} 23. Kf1 {[%emt 0:00:27]} b5 {[%emt 0:01:34]} 24. a4 {[%emt 0:05:02]} (24. f4 $142) 24... b4 $17 {[%emt 0:05:35] Black is much more active.} 25. Bxd3 {[%emt 0:07:13]} (25. b3 $17 {might work better.}) 25... Rxd3 $19 {[%emt 0:01:49]} ({Less strong is} 25... cxd3 26. Ke1 $17 (26. Bd2 Rc8 $17)) 26. Ke2 {[%emt 0:00:05]} Rb3 {[%emt 0:01:21] Black has a decisive advantage.} 27. Kd1 {[%emt 0:00:09]} Bd8 {[%emt 0:03:26]} 28. Kc2 {[%emt 0:00:30]} Bf6 {[%emt 0:01:04] Weighted Error Value: White=0.23 (precise) /Black=0.02 (flawless) .  Mistake:       	White=3     	---        Inaccurate:     	---       	Black=1      OK:         	White=3     	Black=9      Best:        	White=1     	Black=4} 0-1

[Event "Budapest IM-A ONE WEEK Feb 2024"]
[Site "Budapest"]
[Date "2024.03.02"]
[Round "9.5"]
[White "Ulasevich, Sergei"]
[Black "Toth-Goczo, Melinda"]
[Result "1-0"]
[ECO "B12"]
[WhiteElo "2261"]
[BlackElo "2201"]
[Annotator "TA"]
[PlyCount "87"]
[EventDate "2024.02.25"]
[EventType "tourn"]
[EventCountry "HUN"]
[SourceTitle "playchess.com"]
[Source "ChessBase"]
[SourceQuality "1"]
[TimeControl "5400+30"]

{[%evp 10,87,27,39,39,22,47,26,70,53,44,56,98,25,93,3,6,-115,-122,-108,-72,-69,-22,-37,-25,-153,-139,-397,-425,-398,0,0,579,578,587,579,503,585,581,580,643,533,538,554,569,571,577,565,598,635,628,628,620,620,670,643,795,760,824,794,829,825,827,819,851,814,766,747,2264,2195,1700,1810,5027,1704,1715,1669,1903,1795,1683,1627]} 1. e4 {[%emt 0:00:10]} c6 {[%emt 0:00:39]} 2. d4 {[%emt 0:00:19]} g6 {[%emt 0:00:32]} 3. Nc3 {[%emt 0:00:28]} d5 {[%emt 0:00:09]} 4. h3 {[%emt 0:00:46]} Bg7 {[%emt 0:01:20]} 5. e5 {[%emt 0:00:17]} f6 {[%emt 0:04:42]} 6. f4 {[%emt 0:00:27] B15: Caro-Kann: 3 Nc3: 3...g6 and 3...dxe4 4 Nxe4 Nf6 5 Nxf6+ exf6.} Nh6 {[%emt 0:08:16]} 7. g4 {[%emt 0:00:26]} Nf7 {[%emt 0:00:16]} 8. Nf3 {[%emt 0:02:44]} c5 $146 {[%emt 0:02:39]} ({Predecessor:} 8... h5 9. g5 fxg5 10. fxg5 Bf5 11. Nh4 e6 12. Nxf5 exf5 13. h4 Qe7 14. Ne2 Nd7 {0-1 Deac,B (2643)-Tasdogen,D (2301) Speed Chess Super Swiss blitz 2021 (15)}) 9. Bb5+ {[%emt 0:08:59]} Nc6 {[%emt 0:01:21]} 10. dxc5 {[%emt 0:00:10]} e6 {[%emt 0:05:59]} 11. Qe2 {[%emt 0:10:34]} (11. exf6 $1 $16 Bxf6 12. Qe2) 11... O-O {[%emt 0:19:13]} (11... fxe5 $11 12. fxe5 O-O) 12. Bxc6 {[%emt 0:05:01]} ({White should play} 12. exf6 $16 Bxf6 13. Be3) 12... bxc6 $11 {[%emt 0:00:15]} 13. h4 {[%emt 0:00:04]} (13. exf6 $11 Bxf6 14. Be3) 13... fxe5 $17 {[%emt 0:06:32]} 14. fxe5 {[%emt 0:00:30]} d4 {[%emt 0:00:39]} (14... Nxe5 {simplifies} 15. Nxe5 Qc7 16. Bg5 Qxe5 17. Qxe5 Bxe5 18. O-O-O Rb8) 15. Ne4 {[%emt 0:03:55]} Nxe5 {[%emt 0:01:17]} (15... a5 $15 16. Nd6 Ba6) 16. Nxe5 $11 {[%emt 0:00:15]} Bxe5 {[%emt 0:00:03]} 17. h5 {[%emt 0:01:05]} (17. Bh6 $11 Qd5 18. O-O-O (18. Bxf8 $2 Ba6 $19) 18... Qxa2 19. Nd6 (19. Bxf8 $2 Bf4+) 19... Bxd6 20. cxd6) 17... Qd5 $1 $17 {[%emt 0:02:05]} 18. hxg6 $2 {[%emt 0:15:14][%mdl 8192]} (18. Kd1 $17 {keeps fighting.}) 18... Ba6 $1 $19 {[%emt 0:25:03]} 19. Qg2 {[%emt 0:00:32] [#]} Bg3+ $2 {[%emt 0:02:33]} ({Black should try} 19... d3 $1 $19 {[%mdl 512]} 20. Be3 (20. Rxh7 d2+ 21. Kd1 dxc1=N+ 22. Kxc1 Bf4+) (20. gxh7+ $2 Kh8 $19) (20. c3 d2+) 20... hxg6) 20. Kd1 $11 {[%emt 0:00:19]} Rf2 $2 {[%emt 0:07:29][%mdl 8192] [#]} (20... d3 $1 $11 {and Black has nothing to worry.} 21. c3 (21. gxh7+ Kh8 $11) 21... d2 22. Bxd2 (22. Rxh7 dxc1=Q+ 23. Kxc1 Bf4+ 24. Nd2 Qxg2) (22. gxh7+ $2 Kh8 $19) 22... Bf4 23. Nf6+ (23. gxh7+ $2 Kh8 $19) (23. Rxh7 $2 Bd3 $19) 23... Rxf6 24. gxh7+ Kh8 25. Qxd5 exd5) 21. Qxf2 $1 $18 {[%emt 0:00:45]} (21. Nxf2 $2 {too greedy.} Qxg2 22. Bg5 Bxf2 $19 (22... Qxf2 23. gxh7+ Kf7 24. b3 d3 25. cxd3 Bxd3 26. Rf1 Qxf1+ 27. Kd2 Qe2+ 28. Kc3 Be5+ 29. Kb4 a5+ 30. Ka4 Qe4+ 31. Ka3 Qb4#) (22... hxg6 $2 23. Kc1 $19)) (21. Qxg3 Qxe4 22. Qxf2 (22. Rxh7 $2 Qe2#) (22. gxh7+ $2 {perishes.} Kg7 $19) 22... Qxh1+ 23. Kd2 Qh6+ 24. Kd1 Qxg6 (24... Qh1+ $2 25. Kd2 $19) 25. Qxd4 e5 $19) (21. gxh7+ Kh8 22. Qxg3 (22. Nxf2 $2 Qxg2 23. c4 Bxf2 $19) 22... Qxe4 23. Qxf2 Qxh1+ 24. Kd2 Qd5 $11 (24... Qh6+ 25. Kd1 $11)) 21... Bxf2 {[%emt 0:00:19]} 22. Nf6+ {[%emt 0:00:04]} Kg7 {[%emt 0:00:18]} 23. Nxd5 {[%emt 0:00:06]} exd5 {[%emt 0:00:26]} 24. gxh7 {[%emt 0:00:49]} Re8 {[%emt 0:00:38]} 25. h8=Q+ {[%emt 0:05:37]} Rxh8 {[%emt 0:00:05]} 26. Rxh8 {[%emt 0:00:04]} Kxh8 {[%emt 0:00:02]} 27. Bf4 {[%emt 0:00:22]} d3 {[%emt 0:02:59]} 28. cxd3 {[%emt 0:00:22]} Bxd3 {[%emt 0:00:20]} 29. Kd2 {[%emt 0:00:13]} Be4 {[%emt 0:00:32]} 30. Be3 {[%emt 0:00:23]} Bh4 {[%emt 0:01:20]} 31. Rf1 {[%emt 0:00:59]} Kg8 {[%emt 0:00:11]} 32. b4 {[%emt 0:00:32]} Bd8 {[%emt 0:01:03]} 33. a4 {[%emt 0:02:50]} a6 {[%emt 0:00:03]} 34. Kc3 {[%emt 0:00:36]} Kg7 {[%emt 0:00:53]} 35. Bd4+ {[%emt 0:00:17]} Kg8 {[%emt 0:00:46]} 36. Rf2 {[%emt 0:00:49]} Bh4 {[%emt 0:00:29]} 37. Rh2 {[%emt 0:02:34]} Be1+ {[%emt 0:00:06]} 38. Kb3 {[%emt 0:00:09]} Bf3 {[%emt 0:00:42]} 39. g5 {[%emt 0:00:21]} Kf7 {[%emt 0:01:25]} 40. Rh6 {[%emt 0:00:41]} Bd1+ {[%emt 0:03:23]} 41. Ka3 {[%emt 0:00:14]} (41. Kb2 $142 Bh5 42. Rxh5) 41... Bc2 $18 {[%emt 0:00:13]} 42. Rxc6 {[%emt 0:00:49]} Bd2 {[%emt 0:00:08]} 43. g6+ {[%emt 0:00:21]} Bxg6 {[%emt 0:00:08]} 44. Rf6+ {[%emt 0:00:07]} 1-0